fUSD/lending_fUSD_20240827
["ID","MTS","AMOUNT","RATE_DAILY","PERIOD"]
[336270765,1724753449233,-500.0,0.00010994,2]
[336270766,1724753449243,-500.0,0.00010994,2]
[336270767,1724753449253,-636.45,0.00010994,2]
[336270768,1724753449263,-1342.91,0.00010994,2]
[336270769,1724753449273,-400.0,0.00010994,2]
[336270770,1724753449289,-500.0,0.00010994,2]
[336270771,1724753449299,-500.0,0.00010994,2]
[336270772,1724753449309,-863.42,0.00010994,2]
[336270773,1724753449319,-500.0,0.00010994,2]
[336270774,1724753449328,-500.0,0.00010994,2]
[336270775,1724753449339,-525.95182801,0.00010994,2]
[336270776,1724753449349,-500.0,0.00010994,2]
[336270777,1724753449359,-500.0,0.00010994,2]
[336270778,1724753449370,-500.0,0.00010994,2]
[336270779,1724753449380,-500.0,0.00010994,2]
[336270780,1724753449390,-500.0,0.00010994,2]
[336270781,1724753449400,-1456.7,0.00010994,2]
[336270782,1724753449410,-2107.88,0.00010994,2]
[336270783,1724753449420,-500.0,0.00010994,2]
[336270784,1724753449429,-500.0,0.00010994,2]
[336270785,1724753449439,-500.0,0.00010994,2]
[336270786,1724753449449,-500.0,0.00010994,2]
[336270787,1724753449459,-890.13,0.00010994,2]
[336270788,1724753449469,-500.0,0.00010994,2]
[336270789,1724753449479,-1502.55,0.00010994,2]
[336270790,1724753449488,-170.585779,0.00010994,2]
[336270791,1724753449498,-500.0,0.00010994,2]
[336270792,1724753449508,-500.0,0.00010994,2]
[336270793,1724753449518,-3360.54,0.00010994,2]
[336270794,1724753449529,-500.0,0.00010994,2]
[336270795,1724753449539,-837.45,0.00010994,2]
[336270796,1724753449550,-500.0,0.00010994,2]
[336270797,1724753449561,-500.0,0.00010994,2]
[336270798,1724753449570,-500.0,0.00010994,2]
[336270799,1724753449580,-500.0,0.00010994,2]
[336270800,1724753449591,-500.0,0.00010994,2]
[336270801,1724753449600,-500.0,0.00010994,2]
[336270802,1724753449610,-557.72,0.00010994,2]
[336270803,1724753449620,-516.25,0.00010994,2]
[336270804,1724753449629,-526.07,0.00010994,2]
[336270805,1724753449641,-151.0,0.00010994,2]
[336270806,1724753449651,-220.616772,0.00010994,2]
[336270808,1724753449661,-500.0,0.00010994,2]
[336270810,1724753449671,-500.0,0.00010994,2]
[336270812,1724753449681,-500.0,0.00010994,2]
[336270814,1724753449692,-1560.78,0.00010994,2]
[336270816,1724753449701,-500.0,0.00010994,2]
[336270818,1724753449711,-500.0,0.00010994,2]
[336270820,1724753449722,-500.0,0.00010994,2]
[336270822,1724753449732,-500.0,0.00010994,2]
[336270823,1724753449741,-500.0,0.00010994,2]
[336270824,1724753449752,-1250.571391,0.00010994,2]
[336270825,1724753449761,-3397.79,0.00010994,2]
[336270826,1724753449771,-819.825552,0.00010994,2]
[336270827,1724753449783,-500.0,0.00010994,2]
[336270828,1724753449792,-500.0,0.00010994,2]
[336270829,1724753449802,-500.0,0.00010994,2]
[336270830,1724753449812,-500.0,0.00010994,2]
[336270831,1724753449822,-2245.919946,0.00010994,2]
[336270832,1724753449831,-500.0,0.00010994,2]
[336270833,1724753449841,-500.0,0.00010994,2]
[336270834,1724753449852,-500.0,0.00010994,2]
[336270835,1724753449862,-500.0,0.00010994,2]
[336270836,1724753449871,-574.37,0.00010994,2]
[336270837,1724753449881,-4588.9,0.00010994,2]
[336270838,1724753449891,-720.03,0.00010994,2]
[336270840,1724753449901,-1243.71,0.00010994,2]
[336270841,1724753449910,-500.0,0.00010994,2]
[336270843,1724753449920,-500.0,0.00010994,2]
[336270844,1724753449930,-500.0,0.00010995,2]
[336270845,1724753449939,-1727.30083386,0.00010995,2]
[336270846,1724753449949,-200.0,0.00010995,2]
[336270847,1724753449959,-500.0,0.00010995,2]
[336270848,1724753449969,-500.0,0.00010995,2]
[336270849,1724753449979,-500.0,0.00010995,2]
[336270850,1724753449988,-630.51,0.00010995,2]
[336270851,1724753449998,-500.0,0.00010995,2]
[336270852,1724753450007,-500.0,0.00010995,2]
[336270853,1724753450018,-500.0,0.00010995,2]
[336270854,1724753450028,-500.0,0.00010995,2]
[336270855,1724753450038,-500.0,0.00010995,2]
[336270856,1724753450048,-500.0,0.00010995,2]
[336270857,1724753450058,-526.86,0.00010995,2]
[336270858,1724753450067,-500.0,0.00010995,2]
[336270859,1724753450078,-500.0,0.00010995,2]
[336270860,1724753450087,-500.0,0.00010995,2]
[336270861,1724753450097,-500.0,0.00010995,2]
[336270862,1724753450106,-200.0,0.00010995,2]
[336270863,1724753450116,-500.0,0.00010995,2]
[336270864,1724753450125,-500.0,0.00010995,2]
[336270865,1724753450135,-500.0,0.00010995,2]
[336270866,1724753450145,-500.0,0.00010995,2]
[336270867,1724753450154,-500.0,0.00010995,2]
[336270868,1724753450164,-500.0,0.00010995,2]
[336270869,1724753450174,-500.0,0.00010995,2]
[336270870,1724753450183,-500.0,0.00010995,2]
[336270871,1724753450193,-500.0,0.00010995,2]
[336270872,1724753450202,-1169.96,0.00010995,2]
[336270873,1724753450212,-500.0,0.00010995,2]
[336270874,1724753450222,-500.0,0.00010995,2]
[336270875,1724753450232,-614.5,0.00010995,2]
[336270876,1724753450242,-500.0,0.00010995,2]
[336270877,1724753450252,-500.0,0.00010995,2]
[336270878,1724753450262,-500.0,0.00010995,2]
[336270879,1724753450272,-500.0,0.00010995,2]
[336270880,1724753450285,-500.0,0.00010995,2]
[336270881,1724753450294,-500.0,0.00010995,2]
[336270882,1724753450304,-500.0,0.00010995,2]
[336270883,1724753450313,-639.41,0.00010995,2]
[336270884,1724753450323,-778.43,0.00010995,2]
[336270885,1724753450332,-1053.25,0.00010995,2]
[336270886,1724753450342,-500.0,0.00010995,2]
[336270887,1724753450353,-151.0,0.00010995,2]
[336270888,1724753450363,-151.0,0.00010995,2]
[336270889,1724753450373,-269.937406,0.00010995,2]
[336270890,1724753450384,-500.0,0.00010995,2]
[336270891,1724753450394,-500.0,0.00010995,2]
[336270892,1724753450404,-1025.13,0.00010995,2]
[336270893,1724753450413,-500.0,0.00010995,2]
[336270894,1724753450423,-973.11,0.00010995,2]
[336270895,1724753450432,-500.0,0.00010995,2]
[336270896,1724753450443,-500.0,0.00010995,2]
[336270897,1724753450454,-773.04,0.00010995,2]
[336270898,1724753450465,-500.0,0.00010995,2]
[336270899,1724753450475,-500.0,0.00010995,2]
[336270900,1724753450485,-767.9,0.00010995,2]
[336270901,1724753450494,-500.0,0.00010995,2]
[336270902,1724753450504,-500.0,0.00010995,2]
[336270903,1724753450513,-500.0,0.00010995,2]
[336270904,1724753450523,-500.0,0.00010995,2]
[336270905,1724753450537,-509.51,0.00010995,2]
[336270906,1724753450547,-500.0,0.00010995,2]
[336270907,1724753450557,-591.89279422,0.00010995,2]
[336270908,1724753450570,-500.0,0.00010995,2]
[336270909,1724753450580,-500.0,0.00010995,2]
[336270910,1724753450590,-500.0,0.00010995,2]
[336270911,1724753450600,-500.0,0.00010995,2]
[336270912,1724753450610,-500.0,0.00010995,2]
[336270913,1724753450620,-500.0,0.00010995,2]
[336270914,1724753450630,-500.0,0.00010995,2]
[336270915,1724753450642,-500.0,0.00010995,2]
[336270916,1724753450651,-500.0,0.00010995,2]
[336270917,1724753450662,-500.0,0.00010995,2]
[336270918,1724753450671,-44.17182808,0.00010995,2]
[336270919,1724753466405,-150.0,9.962e-05,2]
[336270920,1724753466968,-150.0,9.962e-05,2]
[336270921,1724753467575,-150.0,9.962e-05,2]
[336270922,1724753468110,-150.0,9.962e-05,2]
[336270923,1724753468642,-150.0,9.962e-05,2]
[336270924,1724753469146,-150.0,9.962e-05,2]
[336270925,1724753469899,-150.0,9.962e-05,2]
[336270926,1724753668076,500.0,0.000151,120]
[336270927,1724753706157,-150.0,9.91e-05,2]
[336270928,1724753706554,-130.80815331,9.91e-05,2]
[336270929,1724753711815,150.0,9.712e-05,2]
[336270930,1724753711837,150.0,9.712e-05,2]
[336270931,1724753711858,150.0,9.712e-05,2]
[336270932,1724753711879,296.26389459,9.712e-05,2]
[336270933,1724753711900,341.84114036,9.712e-05,2]
[336270934,1724753731781,150.0,8.219e-05,2]
[336270935,1724753731803,150.0,8.219e-05,2]
[336270936,1724753731826,104.29,8.219e-05,2]
[336270937,1724753792077,150.0,9.868e-05,2]
[336270938,1724753792100,135.13,9.868e-05,2]
[336270939,1724753793650,-242.28532379,9.926e-05,2]
[336270940,1724753794155,-150.0,9.926e-05,2]
[336270941,1724753794953,-150.0,9.926e-05,2]
[336270942,1724753807989,1017.1339789,9.727e-05,2]
[336270943,1724753811826,150.0,9.863e-05,2]
[336270944,1724753811846,150.0,9.863e-05,2]
[336270945,1724753811868,150.0,9.863e-05,2]
[336270946,1724753811890,150.0,9.863e-05,2]
[336270947,1724753811911,150.0,9.863e-05,2]
[336270948,1724753811933,150.0,9.863e-05,2]
[336270949,1724753811957,100.0,9.863e-05,2]
[336270950,1724753828832,150.0,9.666e-05,2]
[336270951,1724753828852,150.0,9.666e-05,2]
[336270952,1724753828873,150.0,9.666e-05,2]
[336270953,1724753828893,150.0,9.666e-05,2]
[336270954,1724753828914,150.0,9.666e-05,2]
[336270955,1724753828935,150.0,9.666e-05,2]
[336270956,1724753829155,145.60239947,9.666e-05,2]
[336270957,1724753841847,-150.0,9.952e-05,2]
[336270958,1724753842194,-150.0,9.981e-05,2]
[336270959,1724753842680,-593.29997413,0.0001,2]
[336270960,1724753854886,1131.81030034,9.8e-05,2]
[336270961,1724753886376,-169.52212637,9.926e-05,2]
[336270962,1724753902925,1025.23610299,9.727e-05,2]
[336270963,1724753937161,-981.34202293,9.933e-05,2]
[336270964,1724753937952,-150.0,9.933e-05,2]
[336270965,1724753938458,-150.0,9.933e-05,2]
[336270966,1724753939099,-150.0,9.933e-05,2]
[336270967,1724753939809,-150.0,9.933e-05,2]
[336270968,1724753940489,-150.0,9.933e-05,2]
[336270969,1724753940979,-150.0,9.933e-05,2]
[336270970,1724753941714,-150.0,9.933e-05,2]
[336270971,1724753942029,176.32,9.887e-05,2]
[336270972,1724753950851,1110.1724766,9.689e-05,2]
[336270973,1724753952431,-150.0,9.933e-05,2]
[336270974,1724753953032,-150.0,9.933e-05,2]
[336270975,1724753953679,-150.0,9.933e-05,2]
[336270976,1724753954199,-150.0,9.933e-05,2]
[336270977,1724753954614,-150.0,9.933e-05,2]
[336270978,1724753955213,-150.0,9.933e-05,2]
[336270979,1724753955880,-150.0,9.933e-05,2]
[336270980,1724753956566,-150.0,9.933e-05,2]
[336270981,1724753957117,-150.0,9.933e-05,2]
[336270982,1724753957865,-150.0,9.933e-05,2]
[336270983,1724753984918,150.0,9.734e-05,2]
[336270984,1724753984943,150.0,9.734e-05,2]
[336270985,1724753984966,150.0,9.734e-05,2]
[336270986,1724753984990,150.0,9.734e-05,2]
[336270987,1724753985015,150.0,9.734e-05,2]
[336270988,1724753985040,150.0,9.734e-05,2]
[336270989,1724753985066,128.44462892,9.734e-05,2]
[336270991,1724754023183,250.0,9.88e-05,2]
[336270992,1724754026992,-169.52212637,9.914e-05,2]
[336270993,1724754033000,1032.10712862,9.682e-05,2]
[336270994,1724754068335,-209.31324471,9.924e-05,2]
[336270995,1724754093983,1110.3963109,9.726e-05,2]
[336270996,1724754227713,150.0,8.219e-05,2]
[336270997,1724754227745,150.0,8.219e-05,2]
[336270998,1724754227766,84.07,8.219e-05,2]
[336271001,1724754297669,155.0,8.219e-05,2]
[336271003,1724754315293,200.0,9.862e-05,2]
[336271004,1724754315875,150.0,9.888e-05,2]
[336271006,1724754331838,150.0,9.69e-05,2]
[336271007,1724754331862,162.05387153,9.69e-05,2]
[336271008,1724754331887,798.61442338,9.69e-05,2]
[336271048,1724754477725,4884.15,9.75e-05,2]
[336271049,1724754479650,891.3645,9.9e-05,2]
[336271050,1724754486656,356.35,9.78e-05,2]
[336271051,1724754522192,176.34,9.78e-05,2]
[336271065,1724754580729,790.68,9.765e-05,2]
[336271066,1724754581296,250.0,9.765e-05,2]
[336271095,1724754631855,-300.0,9.942e-05,2]
[336271097,1724754631865,-2920.51835313,9.943e-05,2]
[336271098,1724754631877,-1877.20533,9.943e-05,2]
[336271099,1724754631888,-450.0,9.943e-05,2]
[336271100,1724754631900,-2977.63233919,9.943e-05,2]
[336271101,1724754631912,-375.723,9.943e-05,2]
[336271102,1724754631930,-3128.4253,9.943e-05,2]
[336271103,1724754631942,-791.24822385,9.943e-05,2]
[336271104,1724754631966,-643.25264237,9.943e-05,2]
[336271105,1724754631977,-441.93854479,9.943e-05,2]
[336271106,1724754631989,-1151.55012815,9.943e-05,2]
[336271107,1724754632001,-1007.07587274,9.943e-05,2]
[336271108,1724754632012,-8019.83764616,9.943e-05,2]
[336271114,1724754637914,-1830.05708998,9.943e-05,2]
[336271115,1724754637927,-231.78875221,9.973e-05,2]
[336271116,1724754637936,-172.53270387,9.997e-05,2]
[336271155,1724754638589,-23071.78666827,9.997e-05,2]
[336271156,1724754638598,-648.32500001,9.999e-05,2]
[336271158,1724754638608,-150.0,9.999e-05,2]
[336271160,1724754638617,-1050.0,0.0001,2]
[336271162,1724754638627,-6371.88833171,0.0001,2]
[336271165,1724754638638,-31334.99410408,0.0001,2]
[336271167,1724754638650,-6082.39880002,0.0001,2]
[336271170,1724754638672,-31223.99999997,0.0001,2]
[336271395,1724754640920,-3072301.71876422,0.0001,2]
[336271397,1724754640931,-166.36375416,0.0001,2]
[336271399,1724754640941,-487.71486781,0.0001,2]
[336271401,1724754640955,-151.19907897,0.0001,2]
[336271403,1724754640964,-306.60278461,0.0001,2]
[336271405,1724754640975,-151.8,0.0001,2]
[336271407,1724754640984,-434.37047462,0.0001,2]
[336271409,1724754640995,-690.05714369,0.00010009,2]
[336271411,1724754641005,-575.65652194,0.00010026,2]
[336271413,1724754641015,-155.0,0.00010026,2]
[336271415,1724754641024,-1222.83889709,0.00010097,2]
[336271417,1724754641034,-258.94,0.00010186,2]
[336271419,1724754641043,-150.3,0.00010278,2]
[336271421,1724754641053,-487.71486781,0.000104,2]
[336271422,1724754641063,-384.07,0.00010472,2]
[336271424,1724754641073,-356.95,0.00010478,2]
[336271426,1724754641082,-180.528769,0.00010482,2]
[336271428,1724754641091,-421.66,0.000105,2]
[336271430,1724754641100,-1796.3475,0.00010788,2]
[336271431,1724754641109,-286.46591,0.0001089,2]
[336271432,1724754641118,-207.28,0.0001089,2]
[336271433,1724754641127,-1029.15850861,0.00010893,2]
[336271434,1724754641137,-4450.9223,0.00010895,2]
[336271435,1724754641146,-159.97697017,0.00010899,2]
[336271436,1724754641156,-159.97697012,0.00010899,2]
[336271437,1724754641165,-159.97697012,0.00010899,2]
[336271438,1724754641175,-159.97697012,0.00010899,2]
[336271446,1724754641384,-159.97697012,0.00010899,2]
[336271449,1724754641400,-159.97697012,0.00010899,2]
[336271451,1724754641409,-159.97697012,0.00010899,2]
[336271452,1724754641419,-159.97697012,0.00010899,2]
[336271455,1724754641431,-159.97697012,0.00010899,2]
[336271457,1724754641441,-1000.0,0.000109,2]
[336271459,1724754641450,-159.97697012,0.000109,2]
[336271461,1724754641460,-166.36375415,0.000109,2]
[336271463,1724754641468,-487.71486781,0.000109,2]
[336271464,1724754641478,-150.47985208,0.000109,2]
[336271466,1724754641487,-150.47985205,0.000109,2]
[336271468,1724754641497,-150.47985205,0.000109,2]
[336271470,1724754641506,-150.47985205,0.000109,2]
[336271472,1724754641516,-3170.826,0.00010955,2]
[336271474,1724754641525,-11101.206,0.00010955,2]
[336271476,1724754641534,-500.0,0.00010958,2]
[336271478,1724754641544,-500.0,0.00010958,2]
[336271480,1724754641554,-500.0,0.00010958,2]
[336271482,1724754641564,-500.0,0.00010958,2]
[336271484,1724754641573,-500.0,0.00010958,2]
[336271486,1724754641582,-500.0,0.00010958,2]
[336271488,1724754641591,-5000.0,0.00010958,2]
[336271490,1724754641601,-500.0,0.00010958,2]
[336271492,1724754641612,-536.39,0.00010958,2]
[336271494,1724754641621,-500.0,0.00010958,2]
[336271496,1724754641633,-500.0,0.00010958,2]
[336271498,1724754641642,-500.0,0.00010958,2]
[336271500,1724754641651,-500.0,0.00010958,2]
[336271502,1724754641660,-500.0,0.00010958,2]
[336271504,1724754641670,-500.0,0.00010958,2]
[336271505,1724754641679,-500.0,0.00010958,2]
[336271507,1724754641688,-500.0,0.00010958,2]
[336271509,1724754641698,-500.0,0.00010958,2]
[336271511,1724754641708,-500.0,0.00010958,2]
[336271513,1724754641717,-500.0,0.00010958,2]
[336271515,1724754641727,-500.0,0.00010958,2]
[336271517,1724754641737,-500.0,0.00010958,2]
[336271519,1724754641746,-500.0,0.00010958,2]
[336271521,1724754641755,-500.0,0.00010958,2]
[336271523,1724754641765,-500.0,0.00010958,2]
[336271525,1724754641775,-500.0,0.00010958,2]
[336271527,1724754641784,-500.0,0.00010958,2]
[336271529,1724754641793,-500.0,0.00010958,2]
[336271531,1724754641803,-500.0,0.00010958,2]
[336271533,1724754641814,-500.0,0.00010958,2]
[336271535,1724754641825,-500.0,0.00010958,2]
[336271537,1724754641835,-500.0,0.00010958,2]
[336271539,1724754641844,-500.0,0.00010958,2]
[336271541,1724754641854,-500.0,0.00010958,2]
[336271543,1724754641864,-500.0,0.00010958,2]
[336271545,1724754641876,-500.0,0.00010958,2]
[336271547,1724754641885,-500.0,0.00010958,2]
[336271549,1724754641895,-500.0,0.00010958,2]
[336271551,1724754641905,-500.0,0.00010958,2]
[336271553,1724754641917,-500.0,0.00010958,2]
[336271555,1724754641927,-500.0,0.00010958,2]
[336271556,1724754641935,-500.0,0.00010958,2]
[336271558,1724754641945,-500.0,0.00010958,2]
[336271560,1724754641954,-500.0,0.00010958,2]
[336271562,1724754641964,-500.0,0.00010958,2]
[336271564,1724754641973,-500.0,0.00010958,2]
[336271566,1724754641982,-500.0,0.00010958,2]
[336271569,1724754641995,-500.0,0.00010958,2]
[336271571,1724754642215,-500.0,0.00010958,2]
[336271572,1724754642225,-618.3,0.00010958,2]
[336271574,1724754642235,-500.0,0.00010958,2]
[336271576,1724754642244,-500.0,0.00010958,2]
[336271578,1724754642254,-500.0,0.00010958,2]
[336271580,1724754642264,-500.0,0.00010958,2]
[336271582,1724754642273,-500.0,0.00010958,2]
[336271584,1724754642282,-500.0,0.00010958,2]
[336271586,1724754642291,-3703.29,0.00010958,2]
[336271588,1724754642300,-3703.29,0.00010958,2]
[336271590,1724754642313,-3703.29,0.00010958,2]
[336271592,1724754642322,-3703.29,0.00010958,2]
[336271594,1724754642331,-3703.29,0.00010958,2]
[336271596,1724754642340,-3703.29,0.00010958,2]
[336271598,1724754642349,-3703.29,0.00010958,2]
[336271600,1724754642358,-3703.29,0.00010958,2]
[336271602,1724754642367,-3703.29,0.00010958,2]
[336271604,1724754642377,-3703.29,0.00010958,2]
[336271606,1724754642386,-3703.29,0.00010958,2]
[336271608,1724754642395,-3703.29,0.00010958,2]
[336271610,1724754642404,-3703.29,0.00010958,2]
[336271612,1724754642414,-654.87,0.00010958,2]
[336271614,1724754642423,-654.87,0.00010958,2]
[336271616,1724754642433,-654.87,0.00010958,2]
[336271618,1724754642441,-654.87,0.00010958,2]
[336271619,1724754642451,-654.87,0.00010958,2]
[336271621,1724754642460,-654.87,0.00010958,2]
[336271623,1724754642469,-654.87,0.00010958,2]
[336271625,1724754642478,-654.87,0.00010958,2]
[336271627,1724754642487,-654.87,0.00010958,2]
[336271629,1724754642497,-654.87,0.00010958,2]
[336271631,1724754642506,-654.87,0.00010958,2]
[336271633,1724754642515,-654.87,0.00010958,2]
[336271635,1724754642525,-654.87,0.00010958,2]
[336271637,1724754642534,-1723.29,0.00010958,2]
[336271639,1724754642543,-1723.29,0.00010958,2]
[336271641,1724754642552,-500.0,0.00010958,2]
[336271643,1724754642572,-500.0,0.00010958,2]
[336271645,1724754642581,-1723.29,0.00010958,2]
[336271647,1724754642590,-500.0,0.00010958,2]
[336271649,1724754642600,-1723.29,0.00010958,2]
[336271651,1724754642609,-347.23,0.00010958,2]
[336271653,1724754642619,-1723.29,0.00010958,2]
[336271655,1724754642628,-1723.29,0.00010958,2]
[336271656,1724754642638,-1723.29,0.00010958,2]
[336271658,1724754642647,-1723.29,0.00010958,2]
[336271660,1724754642657,-1723.29,0.00010958,2]
[336271662,1724754642666,-1723.29,0.00010958,2]
[336271664,1724754642675,-1723.29,0.00010958,2]
[336271666,1724754642685,-1723.29,0.00010958,2]
[336271668,1724754642694,-1723.29,0.00010958,2]
[336271670,1724754642703,-500.0,0.00010958,2]
[336271673,1724754642712,-500.0,0.00010958,2]
[336271675,1724754642721,-500.0,0.00010958,2]
[336271677,1724754642731,-500.0,0.00010958,2]
[336271679,1724754642740,-500.0,0.00010958,2]
[336271681,1724754642749,-500.0,0.00010958,2]
[336271683,1724754642759,-500.0,0.00010958,2]
[336271685,1724754642768,-500.0,0.00010958,2]
[336271687,1724754642778,-500.0,0.00010958,2]
[336271689,1724754642787,-500.0,0.00010958,2]
[336271691,1724754642796,-500.0,0.00010958,2]
[336271693,1724754642807,-500.0,0.00010958,2]
[336271695,1724754642820,-500.0,0.00010958,2]
[336271696,1724754642831,-500.0,0.00010958,2]
[336271701,1724754642840,-500.0,0.00010958,2]
[336271704,1724754642850,-500.0,0.00010958,2]
[336271707,1724754642859,-500.0,0.00010958,2]
[336271709,1724754642869,-500.0,0.00010958,2]
[336271711,1724754642878,-500.0,0.00010958,2]
[336271713,1724754642887,-1927.41,0.00010958,2]
[336271715,1724754642896,-500.0,0.00010958,2]
[336271717,1724754642905,-1927.41,0.00010958,2]
[336271719,1724754642918,-500.0,0.00010958,2]
[336271721,1724754642927,-1927.41,0.00010958,2]
[336271723,1724754642936,-322.17021052,0.00010958,2]
[336271724,1724754642945,-1927.41,0.00010958,2]
[336271726,1724754642954,-1927.41,0.00010958,2]
[336271728,1724754642965,-1927.41,0.00010958,2]
[336271730,1724754642974,-1927.41,0.00010958,2]
[336271732,1724754642983,-1927.41,0.00010958,2]
[336271734,1724754642993,-1927.41,0.00010958,2]
[336271736,1724754643002,-1927.41,0.00010958,2]
[336271738,1724754643012,-1927.41,0.00010958,2]
[336271740,1724754643021,-1927.41,0.00010958,2]
[336271742,1724754643031,-1927.41,0.00010958,2]
[336271744,1724754643041,-500.0,0.00010958,2]
[336271746,1724754643051,-500.0,0.00010958,2]
[336271748,1724754643062,-500.0,0.00010958,2]
[336271750,1724754643071,-500.0,0.00010958,2]
[336271752,1724754643080,-500.0,0.00010958,2]
[336271754,1724754643089,-191.12419332,0.00010958,2]
[336271756,1724754643099,-2666.6,0.00010958,2]
[336271758,1724754643108,-2666.6,0.00010958,2]
[336271760,1724754643118,-2666.6,0.00010958,2]
[336271762,1724754643127,-2666.6,0.00010958,2]
[336271764,1724754643138,-2666.6,0.00010958,2]
[336271766,1724754643148,-2666.6,0.00010958,2]
[336271768,1724754643158,-2666.6,0.00010958,2]
[336271770,1724754643168,-2666.6,0.00010958,2]
[336271772,1724754643177,-2666.6,0.00010958,2]
[336271774,1724754643186,-2666.6,0.00010958,2]
[336271776,1724754643196,-2666.6,0.00010958,2]
[336271778,1724754643205,-2666.6,0.00010958,2]
[336271780,1724754643214,-2666.6,0.00010958,2]
[336271782,1724754643224,-792.52,0.00010958,2]
[336271784,1724754643234,-792.52,0.00010958,2]
[336271786,1724754643244,-792.52,0.00010958,2]
[336271788,1724754643254,-792.52,0.00010958,2]
[336271790,1724754643263,-792.52,0.00010958,2]
[336271792,1724754643272,-792.52,0.00010958,2]
[336271794,1724754643281,-792.52,0.00010958,2]
[336271796,1724754643291,-792.52,0.00010958,2]
[336271798,1724754643300,-792.52,0.00010958,2]
[336271801,1724754643317,-792.52,0.00010958,2]
[336271803,1724754643331,-1438.02,0.00010958,2]
[336271805,1724754643341,-792.52,0.00010958,2]
[336271807,1724754643351,-1438.02,0.00010958,2]
[336271809,1724754643360,-792.52,0.00010958,2]
[336271811,1724754643371,-1438.02,0.00010958,2]
[336271813,1724754643380,-792.52,0.00010958,2]
[336271815,1724754643390,-1438.02,0.00010958,2]
[336271817,1724754643400,-1438.02,0.00010958,2]
[336271819,1724754643410,-1438.02,0.00010958,2]
[336271821,1724754643419,-1438.02,0.00010958,2]
[336271823,1724754643428,-1438.02,0.00010958,2]
[336271825,1724754643438,-1438.02,0.00010958,2]
[336271828,1724754643448,-1438.02,0.00010958,2]
[336271831,1724754643459,-1438.02,0.00010958,2]
[336271834,1724754643469,-1438.02,0.00010958,2]
[336271837,1724754643478,-1438.02,0.00010958,2]
[336271840,1724754643488,-1451.67,0.00010958,2]
[336271843,1724754643498,-1451.67,0.00010958,2]
[336271845,1724754643508,-1451.67,0.00010958,2]
[336271847,1724754643518,-1451.67,0.00010958,2]
[336271849,1724754643529,-1451.67,0.00010958,2]
[336271851,1724754643539,-1451.67,0.00010958,2]
[336271853,1724754643550,-1451.67,0.00010958,2]
[336271855,1724754643561,-500.0,0.00010958,2]
[336271857,1724754643571,-1451.67,0.00010958,2]
[336271859,1724754643581,-500.0,0.00010958,2]
[336271861,1724754643592,-1451.67,0.00010958,2]
[336271863,1724754643602,-500.0,0.00010958,2]
[336271865,1724754643612,-1451.67,0.00010958,2]
[336271868,1724754643623,-235.15471339,0.00010958,2]
[336271870,1724754643633,-1451.67,0.00010958,2]
[336271872,1724754643643,-1451.67,0.00010958,2]
[336271874,1724754643653,-1451.67,0.00010958,2]
[336271876,1724754643663,-1687.78,0.00010958,2]
[336271878,1724754643673,-1238.05,0.00010958,2]
[336271880,1724754643683,-1687.78,0.00010958,2]